bitfinex-derivatives/quotes_ETHF0:USTF0_20250107
["timestamp","ask_amount","ask_price","bid_price","bid_amount"]
[1736262299876,2.519,3560.2,3560.1,40.8]
[1736262300068,8.2078,3560.4,3558.6,0.2816]
[1736262300268,3.2078,3559.3,3558.6,0.2816]
[1736262300482,3.2078,3559.7,3558.7,0.28104]
[1736262300777,3.2078,3559.3,3558.6,0.2816]
[1736262300971,3.2078,3559.3,3559.2,40.8]
[1736262301569,3.2078,3559.7,3559.2,40.8]
[1736262301774,3.2078,3559.7,3559.6,0.28097]
[1736262301971,3.2078,3559.9,3559.4,0.28098]
[1736262302172,3.2078,3559.5,3558.8,0.28103]
[1736262302377,3.2078,3559.1,3558.0,0.28109]
[1736262302575,3.2078,3558.6,3558.1,0.2816]
[1736262302775,4.52398838,3560.2,3557.6,0.2816]
[1736262302776,3.2078,3558.2,3557.6,0.2816]
[1736262302972,3.2078,3558.8,3557.6,3.4894]
[1736262303177,3.2078,3559.4,3558.9,0.28102]
[1736262303374,3.2078,3559.4,3558.3,3.2078]
[1736262303573,3.2078,3560.2,3559.7,0.28096]
[1736262303776,3.2078,3560.2,3559.0,2.95812758]
[1736262303777,3.2078,3560.2,3559.1,8.424]
[1736262304085,3.2078,3559.7,3559.1,8.424]
[1736262304383,3.14780701,3560.7,3557.8,0.28111]
[1736262304384,0.28101,3559.2,3557.8,0.28111]
[1736262304582,3.2078,3557.9,3556.8,8.424]
[1736262305085,3.2078,3557.9,3557.2,0.28115]
[1736262305272,4.55225701,3560.7,3556.8,8.424]
[1736262305273,3.2078,3557.5,3556.8,8.424]
[1736262305472,3.2078,3557.5,3555.4,0.70325]
[1736262305473,3.2078,3556.9,3556.4,0.2816]
[1736262305679,3.2078,3556.5,3555.2,19.24055112]
[1736262305876,3.2078,3555.7,3555.2,19.24055112]
[1736262306181,3.2078,3555.7,3555.4,0.2816]
[1736262306387,3.2078,3555.7,3555.2,10.81455112]
[1736262306581,3.2078,3555.7,3554.9,0.2816]
[1736262306582,3.2078,3555.7,3555.1,0.28132]
[1736262306884,3.2078,3558.5,3555.6,3.2078]
[1736262307083,3.2078,3558.0,3556.4,3.2078]
[1736262307287,3.2078,3558.0,3556.7,0.28119]
[1736262307480,0.28106,3558.5,3555.4,9.12924]
[1736262307481,3.2078,3557.1,3556.3,3.2078]
[1736262307779,3.2078,3558.1,3557.0,40.8]
[1736262307982,3.2078,3557.7,3557.0,40.8]
[1736262308475,3.2078,3558.1,3557.0,40.8]
[1736262308681,3.2078,3558.7,3557.6,3.2078]
[1736262308881,3.14780701,3559.3,3557.7,3.2078]
[1736262309096,3.14780701,3559.3,3558.6,3.2078]
[1736262309404,6.35560701,3560.4,3559.2,3.2078]
[1736262309700,6.35560701,3560.4,3559.0,0.28101]
[1736262309905,3.2078,3560.1,3558.6,3.2078]
[1736262310097,3.2078,3560.1,3558.3,3.2078]
[1736262310296,3.2078,3560.1,3558.1,4.52398838]
[1736262310493,3.2078,3559.7,3557.7,3.2078]
[1736262310702,3.2078,3559.3,3557.8,3.2078]
[1736262310904,3.14780701,3561.7,3556.7,0.56279]
[1736262310905,3.2078,3558.5,3556.7,0.56279]
[1736262311197,3.2078,3557.7,3556.7,0.2816]
[1736262311404,3.2078,3557.1,3556.4,3.2078]
[1736262311599,3.2078,3557.1,3556.1,3.2078]
[1736262311905,3.2078,3557.1,3556.0,0.2816]
[1736262311906,3.2078,3557.9,3556.0,3.4894]
[1736262312210,3.2078,3557.9,3556.6,3.2078]
[1736262312497,3.2078,3557.9,3556.8,0.70297]
[1736262312695,3.2078,3559.3,3558.0,0.70272]
[1736262312902,3.14780701,3559.9,3558.4,3.2078]
[1736262313092,3.14780701,3559.9,3559.8,40.8]
[1736262313902,2.7102,3561.1,3559.8,40.8]
[1736262313903,3.2078,3560.9,3559.8,40.8]
[1736262314493,3.14780701,3561.9,3559.8,40.8]
[1736262314494,3.2078,3560.5,3559.8,40.8]
[1736262314801,3.2078,3560.9,3559.9,0.2816]
[1736262315002,3.2078,3560.9,3559.8,41.08095]
[1736262315197,3.2078,3560.6,3559.8,40.8]
[1736262315703,3.2078,3560.1,3558.2,4.52398838]
[1736262316000,1.40423,3561.2,3558.0,3.4894]
[1736262316001,3.2078,3558.8,3558.0,0.28109]
[1736262316310,3.2078,3558.1,3556.8,3.2078]
[1736262316607,3.2078,3558.1,3556.7,3.2078]
[1736262316900,3.2078,3558.1,3557.3,40.8]
[1736262317297,3.2078,3558.1,3557.3,44.0078]
[1736262317500,1.4044,3560.8,3557.3,44.0078]
[1736262317501,3.2078,3558.9,3558.0,3.2078]
[1736262317697,3.2078,3559.5,3558.5,0.28105]
[1736262317895,3.2078,3559.5,3558.3,3.2078]
[1736262318104,0.28102,3559.0,3557.7,4.80510838]
[1736262318295,3.2078,3559.2,3558.2,3.2078]
[1736262318598,3.2078,3558.8,3558.3,40.8]
[1736262318800,3.14780701,3560.4,3558.3,40.8]
[1736262318801,3.48886,3558.4,3558.3,40.8]
[1736262318997,3.2078,3558.4,3556.4,3.2078]
[1736262319203,8.14780701,3560.4,3555.2,8.429]
[1736262319204,3.48899,3556.8,3555.6,0.28128]
[1736262319401,3.2078,3556.7,3556.5,40.8]
[1736262319604,3.2078,3557.1,3556.5,40.8]
[1736262319806,0.2812,3556.6,3556.5,40.8]
[1736262320002,3.2078,3556.7,3556.5,40.8]
[1736262320312,3.2078,3556.7,3555.1,3.2078]
[1736262320313,3.2078,3556.7,3555.0,3.2078]
[1736262320499,3.2078,3556.5,3555.4,4.52398838]
[1736262320695,3.2078,3556.5,3556.0,0.28125]
[1736262320903,3.2078,3557.3,3556.0,4.52398838]
[1736262321097,3.2078,3556.9,3555.5,3.07728111]
[1736262321304,3.2078,3556.9,3555.1,3.2078]
[1736262321305,3.2078,3556.5,3555.1,0.28132]
[1736262321502,3.48905,3556.1,3555.0,0.28133]
[1736262321809,3.2078,3555.8,3555.0,0.28132]
[1736262322109,3.2078,3556.2,3554.8,4.52398838]
[1736262322301,3.2078,3556.8,3555.4,4.52398838]
[1736262322501,3.2078,3556.8,3554.4,0.2816]
[1736262322502,3.2078,3557.3,3556.0,4.52398838]
[1736262322910,5.4865,3558.2,3556.6,4.52398838]
[1736262322911,3.2078,3557.9,3556.6,4.52398838]
[1736262323104,3.2078,3557.8,3556.6,4.52398838]
[1736262323310,3.2078,3557.7,3556.6,4.52398838]
[1736262323503,3.14780701,3558.0,3556.1,0.28124]
[1736262323504,3.48895,3557.3,3556.1,0.28124]
[1736262323703,3.14780701,3558.0,3556.0,4.52398838]
[1736262323704,3.2078,3557.2,3556.3,3.2078]
[1736262323901,3.48891,3557.8,3556.6,0.2812]
[1736262324206,3.2078,3557.8,3556.9,0.28118]
[1736262324516,0.28109,3558.1,3556.0,4.52398838]
[1736262324517,3.2078,3557.4,3556.0,4.52398838]
[1736262324708,3.2078,3556.3,3555.6,8.432]
[1736262325312,3.2078,3556.0,3554.9,0.28133]
[1736262325513,3.2078,3556.0,3555.1,3.2078]
[1736262325809,3.48899,3556.8,3555.6,0.28128]
[1736262326023,0.70263,3558.6,3556.0,4.52398838]
[1736262326305,3.2078,3558.0,3556.7,3.2078]
[1736262326511,3.2078,3557.7,3556.6,4.52398838]
[1736262326812,0.28118,3557.0,3556.0,4.52398838]
[1736262327010,3.2078,3557.7,3556.7,3.2078]
[1736262327204,3.2078,3556.8,3556.1,3.2078]
[1736262327503,3.2078,3557.5,3556.6,4.52398838]
[1736262327708,3.2078,3557.9,3557.4,40.8]
[1736262327904,0.70253,3559.1,3557.4,40.8]
[1736262327905,3.2078,3558.3,3557.4,40.8]
[1736262328313,3.2078,3558.3,3557.7,0.28112]
[1736262328606,3.14780701,3559.2,3557.8,4.52398838]
[1736262328799,0.28103,3558.8,3557.8,4.52398838]
[1736262329003,3.2078,3559.0,3557.8,4.52398838]
[1736262329200,3.2078,3558.3,3557.4,40.8]
[1736262329401,3.2078,3557.5,3557.4,40.8]
[1736262329609,8.2078,3557.5,3555.8,0.2816]
[1736262329912,3.2078,3556.7,3555.5,0.2816]
[1736262330115,0.28121,3556.6,3555.9,40.8]
[1736262330411,3.2078,3556.7,3555.9,40.8]
[1736262330610,0.28125,3556.0,3555.9,40.8]
[1736262330809,3.2078,3556.3,3553.9,0.2816]
[1736262331014,8.432,3557.3,3552.3,0.28154]
[1736262331015,0.28147,3553.2,3552.3,0.28154]
[1736262331206,0.0914151,3552.0,3551.9,8.99216911]
[1736262331413,0.0914151,3552.0,3551.5,10.81455112]
[1736262331414,0.2816,3551.6,3551.5,10.22587112]
[1736262331713,0.2816,3551.6,3548.5,4.52398838]
[1736262331714,0.28171,3550.2,3548.5,0.28184]
[1736262331915,3.2078,3549.8,3549.7,0.28175]
[1736262332120,3.2078,3550.3,3549.9,2.8128]
[1736262332312,3.2078,3550.3,3549.0,19.401578]
[1736262332509,0.28178,3549.4,3548.7,0.2824]
[1736262332707,0.28159,3551.8,3550.3,0.2817]
[1736262332914,3.2078,3552.1,3551.7,1.68878]
[1736262333113,3.2078,3552.1,3551.5,1.68878]
[1736262333417,3.2078,3552.1,3551.7,3.2078]
[1736262333418,3.49942977,3552.1,3551.7,3.2078]
[1736262333611,2.6048,3554.9,3551.9,4.52398838]
[1736262333811,3.2078,3554.1,3552.6,3.2078]
[1736262334211,3.2078,3555.1,3553.4,3.2078]
[1736262334414,4.52398838,3555.6,3552.8,3.2078]
[1736262334415,0.28143,3553.8,3552.8,3.2078]
[1736262334720,0.28133,3555.1,3553.5,2.02403102]
[1736262335013,3.09773641,3555.0,3553.6,1.31921154]
[1736262335218,3.2078,3554.6,3553.5,1.16695384]
[1736262335410,3.2078,3554.6,3552.4,4.25722724]
[1736262335618,4.52398838,3554.9,3551.8,4.52398838]
[1736262335619,3.2078,3553.5,3553.2,0.42988319]
[1736262335915,4.52398838,3553.3,3551.9,0.43001535]
[1736262336122,0.7036,3553.7,3551.0,3.2078]
[1736262336123,3.2078,3552.0,3551.0,3.2078]
[1736262336315,3.2078,3551.5,3550.3,0.2816]
[1736262336516,3.2078,3551.5,3550.3,0.2817]
[1736262336717,3.2078,3551.1,3549.9,3.2078]
[1736262337115,3.2078,3550.7,3549.5,0.21724373]
[1736262337316,3.2078,3550.0,3549.0,2.6388]
[1736262337617,3.2078,3550.0,3549.2,3.2078]
[1736262337820,3.2078,3549.3,3548.4,3.2078]
[1736262338016,3.2078,3550.0,3548.5,3.2078]
[1736262338213,3.2078,3550.2,3548.5,3.2078]
[1736262338419,3.2078,3551.1,3549.7,3.2078]
[1736262338615,3.48944,3551.1,3549.8,0.28174]
[1736262338812,3.2078,3551.5,3550.5,3.48948]
[1736262339123,3.09773641,3552.5,3549.5,4.52398838]
[1736262339124,3.09773641,3552.5,3551.4,3.2078]
[1736262339316,3.09773641,3552.5,3551.7,3.2078]
[1736262339520,3.09773641,3552.5,3551.8,3.2078]
[1736262339719,3.09773641,3552.5,3552.4,44.0078]
[1736262340121,0.28152,3552.6,3552.4,40.8]
[1736262340313,7.05968838,3554.4,3552.4,40.8]
[1736262340314,3.2078,3553.5,3552.4,40.8]
[1736262340516,4.52398838,3555.0,3552.7,3.2078]
[1736262340714,3.2078,3553.5,3552.4,40.8]
[1736262340914,3.2078,3553.5,3552.4,44.0078]
[1736262341124,3.2078,3554.4,3553.2,3.2078]
[1736262341323,3.2078,3553.6,3552.7,3.2078]
[1736262341516,0.28145,3553.5,3552.5,7.8421]
[1736262341712,3.2078,3554.4,3552.5,5.728]
[1736262341912,3.2078,3555.3,3552.9,3.2078]
[1736262342123,3.2078,3554.3,3553.3,3.2078]
[1736262342324,3.2078,3554.3,3553.1,3.2078]
[1736262342520,3.2078,3553.9,3553.0,2.7713]
[1736262342826,3.2078,3554.2,3552.7,3.2078]
[1736262343016,3.2078,3553.8,3552.6,2.6301]
[1736262343212,3.2078,3553.0,3551.6,2.7713]
[1736262343426,3.2078,3552.2,3550.5,3.2078]
[1736262343615,1.40677,3554.8,3550.5,3.2078]
[1736262343616,3.2078,3551.4,3550.5,3.2078]
[1736262344213,3.2078,3551.4,3550.1,44.0078]
[1736262344420,3.2078,3551.0,3550.1,40.8]
[1736262344619,0.28174,3550.0,3549.1,3.2078]
[1736262344826,3.2078,3550.6,3549.5,3.2078]
[1736262345129,7.73178838,3551.9,3550.1,3.2078]
[1736262345322,0.28165,3551.1,3549.5,6.55956724]
[1736262345523,3.2078,3550.9,3549.6,3.2078]
[1736262345723,0.28167,3550.8,3549.6,3.2078]
[1736262346024,3.2078,3550.3,3549.5,3.2078]
[1736262346219,3.2078,3550.3,3548.9,2.6301]
[1736262346521,3.2078,3549.9,3548.2,3.2078]
[1736262346724,3.2078,3549.5,3548.6,3.2078]
[1736262346924,3.2078,3549.5,3548.2,0.2824]
[1736262347122,3.2078,3549.9,3548.8,3.2078]
[1736262347323,3.2078,3551.0,3549.8,3.2078]
[1736262347528,3.2078,3551.5,3550.2,3.2078]
[1736262347724,3.2078,3552.3,3551.0,3.2078]
[1736262347928,3.09773641,3552.3,3551.1,0.2816]
[1736262348333,1.02373642,3552.3,3552.2,3.48935]
[1736262348626,4.13031522,3552.5,3552.2,3.2078]
[1736262348829,6.22841278,3553.3,3552.4,4.52398838]
[1736262349025,3.2078,3554.3,3553.2,44.0078]
[1736262349330,9.37498838,3556.1,3553.3,0.28147]
[1736262349331,1.02373642,3553.9,3553.3,0.28147]
[1736262349523,3.2078,3555.2,3553.4,3.2078]
[1736262349831,4.12019517,3556.3,3552.8,8.447]
[1736262349832,1.02373642,3553.3,3552.8,8.447]
[1736262350029,1.02373642,3553.8,3553.2,3.2078]
[1736262350235,3.2078,3555.0,3553.7,3.48923]
[1736262350236,1.02373642,3554.3,3553.7,3.48923]
[1736262350428,3.2078,3555.9,3554.2,3.2078]
[1736262350630,3.2078,3556.3,3554.4,4.52398838]
[1736262350829,1.02373642,3554.8,3553.8,3.2078]
[1736262351135,3.48909,3555.6,3554.1,3.4892]
[1736262351432,1.02373642,3554.4,3553.7,3.2078]
[1736262351633,1.02373642,3553.8,3553.7,3.2078]
[1736262352029,3.2078,3555.1,3553.7,12.73178838]
[1736262352226,4.52398838,3557.0,3554.5,3.2078]
[1736262352427,3.48903,3556.3,3555.5,3.2078]
[1736262352627,0.28124,3556.2,3555.5,3.2078]
[1736262352828,1.02373642,3555.7,3555.5,3.2078]
[1736262353031,1.02373642,3555.8,3555.5,3.2078]
[1736262353327,1.02373642,3555.6,3555.2,3.2078]
[1736262353530,1.02373642,3555.9,3555.4,0.28129]
[1736262353734,1.02373642,3556.2,3555.7,7.73178838]
[1736262353928,1.02373642,3556.2,3556.1,3.2078]
[1736262354126,1.02373642,3556.2,3556.0,3.2078]
[1736262354325,1.02373642,3556.2,3556.1,3.2078]
[1736262354536,3.2078,3557.9,3556.1,3.2078]
[1736262354726,5.16219494,3560.2,3557.2,3.2078]
[1736262354727,1.02373642,3557.5,3557.2,3.2078]
[1736262354930,0.05622083,3557.4,3557.3,40.8]
[1736262355433,1.07995725,3557.4,3557.1,3.2078]
[1736262355729,0.05622083,3557.4,3557.0,4.52398838]
[1736262355927,0.05622083,3557.4,3557.0,40.8]
[1736262356126,1.07995725,3557.4,3557.0,40.8]
[1736262356528,1.02373642,3557.1,3556.1,0.2816]
[1736262356727,1.02373642,3557.0,3556.3,3.2078]
[1736262356934,3.2078,3557.3,3555.8,8.01338838]
[1736262357136,1.02373642,3556.3,3555.8,7.73178838]
[1736262357638,1.02373642,3555.9,3555.2,3.2078]
[1736262357831,1.02373642,3555.1,3554.2,4.52398838]
[1736262358028,3.2078,3555.5,3554.3,0.56298]
[1736262358334,1.02373642,3555.4,3554.8,3.2078]
[1736262358532,3.2078,3556.0,3554.3,0.2816]
[1736262358734,1.02373642,3555.4,3554.8,4.52398838]
[1736262358927,4.23153642,3556.0,3554.8,4.52398838]
[1736262359127,1.02373642,3555.8,3555.2,3.2078]
[1736262359331,5.22670838,3558.2,3554.9,40.8]
[1736262359332,3.2078,3556.9,3555.4,4.52398838]
[1736262359537,1.02373642,3556.3,3555.4,7.73178838]
[1736262359834,1.02373642,3556.3,3555.4,4.52398838]
[1736262360139,3.2078,3557.4,3556.2,3.48903]
[1736262360336,3.2078,3557.4,3556.6,7.73178838]
[1736262360337,1.02373642,3557.3,3556.6,7.73178838]
[1736262360639,1.02373642,3556.7,3556.0,4.52398838]
[1736262360832,1.02373642,3556.7,3556.3,3.2078]
[1736262361034,1.02373642,3556.5,3556.0,4.52398838]
[1736262361228,1.02373642,3556.7,3556.0,7.73178838]
[1736262361429,1.02373642,3557.2,3556.4,3.2078]
[1736262361837,1.02373642,3557.2,3555.6,2.6837]
[1736262361838,4.23153642,3556.5,3555.6,2.6837]
[1736262362030,3.2078,3556.9,3555.8,4.52398838]
[1736262362228,1.02373642,3556.9,3556.0,3.2078]
[1736262362425,0.28112,3557.7,3556.4,4.52398838]
[1736262362634,0.28112,3557.7,3555.7,3.04326041]
[1736262362635,3.2078,3557.0,3556.1,3.04326041]
[1736262362829,1.02373642,3555.8,3555.1,4.52398838]
[1736262363030,3.2078,3556.6,3555.1,4.52398838]
[1736262363230,1.02373642,3556.5,3555.8,3.2078]
[1736262363434,3.2078,3557.2,3555.8,3.2078]
[1736262363738,1.02373642,3557.3,3556.3,4.52398838]
[1736262363936,3.2078,3557.1,3556.3,4.52398838]
[1736262364139,1.02373642,3557.2,3556.2,3.2078]
[1736262364439,1.02373642,3557.2,3555.7,4.52398838]
[1736262364440,1.02373642,3556.6,3555.7,4.52398838]
[1736262364636,1.02373642,3556.7,3556.3,40.8]
[1736262364839,0.28118,3557.0,3556.3,40.8]
[1736262365033,1.02373642,3556.6,3556.3,40.8]
[1736262365335,2.5832,3558.5,3554.9,3.2078]
[1736262365336,0.28129,3555.6,3554.9,3.2078]
[1736262365540,3.2078,3556.2,3554.6,8.7206]
[1736262365734,1.02373642,3555.8,3555.3,3.2078]
[1736262365935,3.48904,3556.2,3555.0,40.8]
[1736262366246,3.2078,3556.7,3555.5,7.73178838]
[1736262366537,2.0732479,3558.3,3556.1,4.52398838]
[1736262366538,4.23153642,3557.1,3556.1,4.52398838]
[1736262366741,1.02373642,3557.0,3556.1,4.52398838]
[1736262366938,1.02373642,3556.9,3556.1,4.52398838]
[1736262367138,1.02373642,3556.9,3556.4,3.2078]
[1736262367533,3.2078,3557.7,3556.4,3.48902]
[1736262367744,1.02373642,3557.2,3556.1,4.52398838]
[1736262367944,1.02373642,3556.9,3556.1,4.52398838]
[1736262368141,1.02373642,3557.1,3555.7,3.2078]
[1736262368442,1.02373642,3556.9,3556.2,3.2078]
[1736262368651,1.02373642,3556.9,3556.1,3.2078]
[1736262368937,3.2078,3557.8,3556.8,3.2078]
[1736262369146,3.2078,3558.0,3556.8,0.28119]
[1736262369334,3.2078,3558.4,3556.9,3.0468089]
[1736262369539,1.02373642,3558.3,3557.3,4.52398838]
[1736262369733,1.02373642,3558.6,3558.0,0.28109]
[1736262369936,3.2078,3559.1,3557.4,2.91251451]
[1736262370141,3.2078,3559.1,3557.9,4.52398838]
[1736262370340,2.0732479,3559.6,3558.7,0.28103]
[1736262370550,1.02373642,3559.4,3558.8,0.28103]
[1736262370738,2.0732479,3559.6,3559.2,0.281]
[1736262371246,3.2078,3559.7,3559.3,40.8]
[1736262371543,3.2078,3560.1,3559.3,43.80214805]
[1736262371738,1.02373642,3560.4,3559.3,40.8]
[1736262371943,1.02373642,3560.7,3559.7,4.52398838]
[1736262372243,3.2078,3561.2,3560.3,7.73178838]
[1736262372433,2.0732479,3562.8,3560.8,3.2078]
[1736262372434,4.23153642,3562.2,3560.8,3.2078]
[1736262372638,1.02373642,3561.7,3560.9,4.80484838]
[1736262372838,3.2078,3562.2,3560.9,4.52398838]
[1736262373045,3.2078,3562.2,3561.2,3.2078]
[1736262373346,3.2078,3562.4,3561.2,3.2078]
[1736262373551,3.2078,3562.4,3561.4,3.2078]
[1736262373845,1.02373642,3561.4,3560.4,8.7139]
[1736262374043,3.2078,3560.5,3560.4,8.433]
[1736262374242,3.2078,3561.0,3560.4,8.433]
[1736262374446,4.23153642,3561.0,3560.4,8.433]
[1736262374647,3.2078,3561.0,3560.5,0.2816]
[1736262374953,1.02373642,3560.7,3560.1,0.2816]
[1736262375250,1.02373642,3560.5,3560.0,0.2816]
[1736262375439,4.23153642,3561.0,3560.0,0.2816]
[1736262375642,3.2078,3561.0,3560.2,4.52398838]
[1736262376043,3.2078,3561.0,3560.3,3.25471818]
[1736262376345,3.2078,3561.0,3560.2,4.52398838]
[1736262376643,1.40344,3563.2,3560.2,4.52398838]
[1736262376644,3.2078,3562.4,3560.9,3.2078]
[1736262376848,1.02373642,3561.9,3560.8,4.52398838]
[1736262377046,3.2078,3561.3,3560.5,3.2078]
[1736262377251,1.02373642,3562.1,3560.8,4.52398838]
[1736262377544,2.6554,3564.2,3560.8,4.52398838]
[1736262377545,1.02373642,3562.9,3562.0,45.32398838]
[1736262377746,3.2078,3563.1,3562.0,45.32398838]
[1736262377940,3.2078,3563.8,3562.7,4.52398838]
[1736262378145,4.23153642,3563.8,3562.7,4.52398838]
[1736262378345,4.23153642,3563.8,3562.4,3.2078]
[1736262378346,0.28059,3564.4,3563.3,4.52398838]
[1736262378545,3.2078,3564.1,3563.3,4.52398838]
[1736262378854,2.0732479,3565.3,3564.0,7.73178838]
[1736262379149,1.02373642,3564.9,3564.0,4.52398838]
[1736262379349,1.02373642,3564.7,3564.0,4.52398838]
[1736262379554,1.02373642,3564.7,3563.8,3.2078]
[1736262379751,3.2078,3565.0,3563.8,3.2078]
[1736262380052,4.52398838,3566.6,3563.9,2.96134938]
[1736262380053,0.28058,3564.5,3563.9,2.96134938]
[1736262380258,3.2078,3564.6,3563.4,8.01258838]
[1736262380555,3.2078,3564.6,3564.0,40.8]
[1736262380556,1.02373642,3564.3,3564.0,40.8]
[1736262380951,3.2078,3564.6,3564.0,40.8]
[1736262381354,27.6,3574.0,3564.0,40.8]
[1736262381355,3.2078,3565.6,3564.2,3.2078]
[1736262381550,3.2078,3565.6,3564.6,7.73178838]
[1736262381963,3.2078,3566.4,3565.2,4.52398838]
[1736262382152,4.23153642,3567.0,3566.1,0.28045]
[1736262382355,4.52398838,3568.4,3565.8,4.52398838]
[1736262382356,3.2078,3567.1,3565.8,4.52398838]
[1736262382547,1.02373642,3567.0,3565.8,4.52398838]
[1736262382748,3.2078,3567.1,3565.9,2.94268269]
[1736262382952,3.2078,3567.5,3566.1,3.2078]
[1736262383160,1.02373642,3567.5,3566.1,3.48825]
[1736262383355,1.02373642,3567.5,3566.2,3.11949109]
[1736262383653,7.28108838,3569.0,3565.4,2.6921]
[1736262383654,3.2078,3566.3,3565.4,2.6921]
[1736262383852,1.02373642,3566.4,3565.3,11.6318]
[1736262384353,4.52398838,3568.4,3564.1,2.6921]
[1736262384354,4.23153642,3565.4,3564.4,0.2808]
[1736262384556,3.2078,3565.4,3564.4,0.2808]
[1736262384753,1.02373642,3564.8,3563.8,0.2808]
[1736262384953,3.2078,3564.2,3562.9,40.8]
[1736262385158,1.02373642,3564.0,3562.9,44.0078]
[1736262385454,4.52398838,3565.4,3562.9,44.0078]
[1736262385455,0.2807,3563.0,3562.9,3.01102521]
[1736262385652,0.70155,3564.1,3562.9,3.01102521]
[1736262385653,3.2078,3563.7,3562.9,4.52398838]
[1736262385858,3.2078,3563.7,3563.0,3.01102521]
[1736262386161,3.2078,3565.6,3563.6,45.32398838]
[1736262386459,3.2078,3565.2,3563.7,14.70751576]
[1736262386760,1.30425642,3565.3,3564.2,3.2078]
[1736262386953,1.02373642,3565.0,3563.7,14.70751576]
[1736262387154,4.52398838,3566.7,3563.7,8.42]
[1736262387155,3.2078,3563.8,3563.7,8.42]
[1736262387357,1.02373642,3564.3,3563.7,8.42]
[1736262387651,1.40179,3567.5,3564.0,0.28061]
[1736262387652,3.48828,3565.8,3564.0,0.28061]
[1736262387956,3.2078,3565.7,3564.3,3.2078]
[1736262388159,3.2078,3566.4,3564.9,3.2078]
[1736262388362,1.02373642,3566.7,3565.9,3.2078]
[1736262388562,1.02373642,3566.7,3564.7,0.70142]
[1736262388563,1.02373642,3566.1,3565.0,3.04096655]
[1736262388753,1.02373642,3566.0,3565.1,3.2078]
[1736262388956,1.02373642,3565.3,3564.8,2.92208907]
[1736262389259,1.02373642,3565.6,3564.8,3.2078]
[1736262389457,1.02373642,3565.4,3564.8,3.2078]
[1736262389654,3.2078,3565.0,3563.9,8.419]
[1736262389853,1.02373642,3564.8,3563.9,8.419]
[1736262390657,3.2078,3565.0,3563.8,3.2078]
[1736262390965,0.28064,3563.7,3563.6,40.8]
[1736262391160,4.23153642,3563.7,3562.5,0.2808]
[1736262391361,1.02373642,3563.0,3562.5,0.2808]
[1736262392168,4.23153642,3562.6,3561.7,0.2808]
[1736262392355,0.28081,3561.6,3561.3,0.2808]
[1736262392556,1.02373642,3561.5,3560.9,0.2808]
[1736262392755,0.70188,3562.4,3561.4,40.8]
[1736262392956,3.2078,3561.5,3561.4,40.8]
[1736262393159,1.02373642,3561.7,3561.4,40.8]
[1736262393357,3.2078,3562.2,3561.4,40.8]
[1736262393556,3.2078,3562.9,3562.0,3.2078]
[1736262393756,5.2844,3564.4,3562.0,0.28078]
[1736262393757,4.23153642,3563.0,3562.0,0.28078]
[1736262393959,0.28083,3561.4,3560.5,5.2641]
[1736262394162,0.28083,3561.4,3558.8,0.70257]
[1736262394163,7.73178838,3561.0,3559.7,3.2078]
[1736262394466,7.73178838,3561.0,3558.0,3.17682007]
[1736262394467,4.23153642,3559.8,3558.0,3.17682007]
[1736262394675,4.52398838,3561.0,3558.8,0.28102]
[1736262394676,4.23153642,3559.6,3558.8,0.28102]
[1736262394965,1.02373642,3559.5,3558.7,3.2078]
[1736262395170,3.2078,3560.1,3558.9,3.20675391]
[1736262395361,3.2078,3560.1,3558.8,3.20675391]
[1736262395670,1.02373642,3560.0,3558.9,3.48882]
[1736262395865,1.02373642,3560.0,3558.9,3.2078]
[1736262396064,3.2078,3560.2,3559.3,0.28099]
[1736262396263,3.2078,3559.8,3559.0,3.17248236]
[1736262396565,1.02373642,3559.3,3558.9,3.2078]
[1736262396760,3.2078,3560.2,3558.9,3.2078]
[1736262396961,3.2078,3560.2,3559.0,3.09079719]
[1736262397163,1.02373642,3560.0,3559.5,3.2078]
[1736262397362,1.02373642,3559.8,3559.0,3.2078]
[1736262397564,4.23153642,3559.8,3559.0,3.2078]
[1736262397769,0.28109,3558.1,3556.6,7.23388838]
[1736262397966,1.02373642,3557.8,3556.3,49.22]
[1736262398157,1.4046,3560.3,3556.3,49.22]
[1736262398158,1.02373642,3557.2,3556.4,0.2816]
[1736262398359,3.2078,3557.4,3556.5,0.28121]
[1736262398657,4.52398838,3559.0,3557.3,3.2078]
[1736262398658,3.2078,3558.6,3557.3,3.2078]
[1736262398967,3.2078,3559.0,3557.7,7.73178838]
[1736262399163,3.2078,3559.5,3558.2,0.28107]
[1736262399364,1.02373642,3559.3,3558.5,3.2078]
[1736262399666,0.28094,3560.0,3558.9,3.2078]
[1736262399667,3.2078,3560.0,3558.9,3.2078]
[1736262399865,1.02373642,3559.2,3558.3,3.04736297]
[1736262400063,3.2078,3559.4,3558.5,3.2078]
[1736262400261,3.2078,3559.9,3558.9,3.2078]
[1736262400560,0.28094,3559.9,3559.8,40.8]
[1736262400865,0.28094,3559.9,3558.7,3.2078]
[1736262400866,1.02373642,3559.2,3558.7,3.2078]
[1736262401065,1.02373642,3559.1,3558.4,2.98855814]
[1736262401267,1.02373642,3558.5,3557.2,3.2078]
[1736262401570,0.28105,3558.5,3558.4,40.8]
[1736262401772,3.2078,3558.6,3558.4,40.8]
[1736262402065,3.2078,3558.9,3558.4,40.8]
[1736262402260,3.2078,3559.4,3558.4,41.08106]
[1736262402463,1.02373642,3559.3,3558.6,3.2078]
[1736262402759,1.02373642,3559.3,3558.4,41.08106]
[1736262402760,1.30478642,3558.5,3558.4,40.8]
[1736262403362,1.02373642,3558.5,3558.4,40.8]
[1736262403558,3.2078,3559.2,3558.4,40.8]
[1736262403765,6.0559,3560.8,3558.5,3.2078]
[1736262403766,3.2078,3559.9,3558.5,3.2078]
[1736262403967,1.02373642,3559.0,3558.4,40.8]
[1736262404267,1.02373642,3559.7,3558.9,3.2078]